Workbook

Sheet القسم 1
A1: الفرع | F1: 1 | G1: 1 | H1: 1 | I1: 1 | J1: 2 | K1: 2 | L1: 2 | M1: 2
A2: القسم | B2: الرمز | C2: المادة | D2: الوحدة | E2: السعر | F2: الكمية / 2024 | G2: القيمة / 2024 | H2: الكمية / 2023 | I2: القيمة / 2023 | J2: الكمية / 2024 | K2: القيمة / 2024 | L2: الكمية / 2023 | M2: القيمة / 2023
A3: القسم 1 | B3: 1 | C3: مادة 1 | D3: كيلو | E3: 10 | F3: 100 | G3: =F3*$E3 -> 1000 | H3: =F3+3 -> 103 | I3: =H3*$E3 -> 1030 | J3: =F3+4 -> 104 | K3: =J3*$E3 -> 1040 | L3: =J3+3 -> 107 | M3: =L3*$E3 -> 1070
A4: القسم 1 | B4: 2 | C4: مادة 2 | D4: كيلو | E4: 11 | F4: 120 | G4: =F4*$E4 -> 1320 | H4: =F4+3 -> 123 | I4: 1353 | J4: =F4+4 -> 124 | K4: =J4*$E4 -> 1364 | L4: =J4+3 -> 127 | M4: =L4*$E4 -> 1397
A5: القسم 1 | B5: 3 | C5: مادة 3 | D5: كيلو | E5: 12 | F5: 130 | G5: 1560 | H5: 133 | I5: 1596 | J5: 134 | K5: =J5*$E5 -> 1608 | L5: 137 | M5: =L5*$E5 -> 1644
A6: القسم 1 | B6: 4 | C6: مادة 4 | D6: كيلو | E6: 13 | F6: 140 | G6: 1820 | H6: 143 | I6: 1859 | J6: 144 | K6: =J6*$E6 -> 1872 | L6: 147 | M6: =L6*$E6 -> 1911
A7: القسم 1 | B7: 5 | C7: مادة 5 | D7: كيلو | E7: 14 | F7: 150 | G7: 2100 | H7: 153 | I7: 2142 | J7: 154 | K7: =J7*$E7 -> 2156 | L7: 157 | M7: =L7*$E7 -> 2198
A8: القسم 1 | B8: 6 | C8: مادة 6 | D8: كيلو | E8: 15 | F8: 160 | G8: =F8*$E8 -> 2400 | H8: =F8+3 -> 163 | I8: =H8*$E8 -> 2445 | J8: =F8+4 -> 164 | K8: 2460 | L8: =J8+3 -> 167 | M8: 2505
A9: القسم 1 | B9: 7 | C9: مادة 7 | D9: كيلو | E9: 16 | F9: 170 | G9: 2720 | H9: 173 | I9: 2768 | J9: 174 | K9: =J9*$E9 -> 2784 | L9: 177 | M9: =L9*$E9 -> 2832
A10: القسم 1 | B10: 8 | C10: مادة 8 | D10: كيلو | E10: 17 | F10: 180 | G10: 3060 | H10: 183 | I10: 3111 | J10: 184 | K10: 3128 | L10: 187 | M10: 3179

Sheet القسم 2
A1: الفرع | F1: 1 | G1: 1 | H1: 1 | I1: 1 | J1: 2 | K1: 2 | L1: 2 | M1: 2
A2: القسم | B2: الرمز | C2: المادة | D2: الوحدة | E2: السعر | F2: الكمية / 2024 | G2: القيمة / 2024 | H2: الكمية / 2023 | I2: القيمة / 2023 | J2: الكمية / 2024 | K2: القيمة / 2024 | L2: الكمية / 2023 | M2: القيمة / 2023
A3: القسم 2 | B3: 1 | C3: مادة 1 | D3: كيلو | E3: 10 | F3: 300 | G3: =F3*$E3 -> 3000 | H3: =F3+3 -> 303 | I3: =H3*$E3 -> 3030 | J3: =F3+4 -> 304 | K3: =J3*$E3 -> 3040 | L3: =J3+3 -> 307 | M3: =L3*$E3 -> 3070
A4: القسم 2 | B4: 2 | C4: مادة 2 | D4: كيلو | E4: 11 | F4: 320 | G4: =F4*$E4 -> 3520 | H4: =F4+3 -> 323 | I4: 3553 | J4: =F4+4 -> 324 | K4: =J4*$E4 -> 3564 | L4: =J4+3 -> 327 | M4: =L4*$E4 -> 3597
A5: القسم 2 | B5: 3 | C5: مادة 3 | D5: كيلو | E5: 12 | F5: 310 | G5: 3720 | H5: 313 | I5: 3756 | J5: 314 | K5: =J5*$E5 -> 3768 | L5: 317 | M5: =L5*$E5 -> 3804
A6: القسم 2 | B6: 4 | C6: مادة 4 | D6: كيلو | E6: 13 | F6: 350 | G6: 4550 | H6: 353 | I6: 4589 | J6: 354 | K6: =J6*$E6 -> 4602 | L6: 357 | M6: =L6*$E6 -> 4641
A7: القسم 2 | B7: 5 | C7: مادة 5 | D7: كيلو | E7: 14 | F7: 330 | G7: 4620 | H7: 333 | I7: 4662 | J7: 334 | K7: =J7*$E7 -> 4676 | L7: 337 | M7: =L7*$E7 -> 4718
A8: القسم 2 | B8: 6 | C8: مادة 6 | D8: كيلو | E8: 15 | F8: 310 | G8: =F8*$E8 -> 4650 | H8: =F8+3 -> 313 | I8: =H8*$E8 -> 4695 | J8: =F8+4 -> 314 | K8: 4710 | L8: =J8+3 -> 317 | M8: 4755
A9: القسم 2 | B9: 7 | C9: مادة 7 | D9: كيلو | E9: 16 | F9: 290 | G9: 4640 | H9: 293 | I9: 4688 | J9: 294 | K9: =J9*$E9 -> 4704 | L9: 297 | M9: =L9*$E9 -> 4752
A10: القسم 2 | B10: 8 | C10: مادة 8 | D10: كيلو | E10: 17 | F10: 270 | G10: 4590 | H10: 273 | I10: 4641 | J10: 274 | K10: 4658 | L10: 277 | M10: 4709
A11: القسم 2 | B11: 9 | C11: مادة 9 | D11: كيلو | E11: 18 | F11: 250 | G11: 4500 | H11: 253 | I11: 4554 | J11: 254 | K11: 4572 | L11: 257 | M11: 4626
A12: القسم 2 | B12: 10 | C12: مادة 10 | D12: كيلو | E12: 19 | F12: 230 | G12: 4370 | H12: 233 | I12: 4427 | J12: 234 | K12: 4446 | L12: 237 | M12: 4503
A13: القسم 2 | B13: 11 | C13: مادة 11 | D13: كيلو | E13: 20 | F13: 210 | G13: 4200 | H13: 213 | I13: 4260 | J13: 214 | K13: 4280 | L13: 217 | M13: 4340
A14: القسم 2 | B14: 12 | C14: مادة 12 | D14: كيلو | E14: 21 | F14: 190 | G14: 3990 | H14: 193 | I14: 4053 | J14: 194 | K14: 4074 | L14: 197 | M14: 4137
A15: القسم 2 | B15: 13 | C15: مادة 13 | D15: كيلو | E15: 22 | F15: 170 | G15: 3740 | H15: 173 | I15: 3806 | J15: 174 | K15: 3828 | L15: 177 | M15: 3894
A16: القسم 2 | B16: 14 | C16: مادة 14 | D16: كيلو | E16: 23 | F16: 150 | G16: 3450 | H16: 153 | I16: 3519 | J16: 154 | K16: 3542 | L16: 157 | M16: 3611
A17: القسم 2 | B17: 15 | C17: مادة 15 | D17: كيلو | E17: 24 | F17: 130 | G17: 3120 | H17: 133 | I17: 3192 | J17: 134 | K17: 3216 | L17: 137 | M17: 3288
A18: القسم 2 | B18: 16 | C18: مادة 16 | D18: كيلو | E18: 25 | F18: 110 | G18: 2750 | H18: 113 | I18: 2825 | J18: 114 | K18: 2850 | L18: 117 | M18: 2925
A19: القسم 2 | B19: 17 | C19: مادة 17 | D19: كيلو | E19: 26 | F19: 90 | G19: 2340 | H19: 93 | I19: 2418 | J19: 94 | K19: 2444 | L19: 97 | M19: 2522
A20: القسم 2 | B20: 18 | C20: مادة 18 | D20: كيلو | E20: 27 | F20: 70 | G20: 1890 | H20: 73 | I20: 1971 | J20: 74 | K20: 1998 | L20: 77 | M20: 2079

Sheet القسم 3
A1: الفرع | F1: 1 | G1: 1 | H1: 1 | I1: 1 | J1: 2 | K1: 2 | L1: 2 | M1: 2 | N1: 3 | O1: 3 | P1: 3 | Q1: 3 | R1: 4 | S1: 4 | T1: 4 | U1: 4 | V1: 5 | W1: 5 | X1: 5 | Y1: 5 | Z1: 6 | AA1: 6 | AB1: 6 | AC1: 6 | AD1: 7 | AE1: 7 | AF1: 7 | AG1: 7
A2: القسم | B2: الرمز | C2: المادة | D2: الوحدة | E2: السعر | F2: الكمية / 2024 | G2: القيمة / 2024 | H2: الكمية / 2023 | I2: القيمة / 2023 | J2: الكمية / 2024 | K2: القيمة / 2024 | L2: الكمية / 2023 | M2: القيمة / 2023 | N2: الكمية / 2024 | O2: القيمة / 2024 | P2: الكمية / 2023 | Q2: القيمة / 2023 | R2: الكمية / 2024 | S2: القيمة / 2024 | T2: الكمية / 2023 | U2: القيمة / 2023 | V2: الكمية / 2024 | W2: القيمة / 2024 | X2: الكمية / 2023 | Y2: القيمة / 2023 | Z2: الكمية / 2024 | AA2: القيمة / 2024 | AB2: الكمية / 2023 | AC2: القيمة / 2023 | AD2: الكمية / 2024 | AE2: القيمة / 2024 | AF2: الكمية / 2023 | AG2: القيمة / 2023
A3: القسم 3 | B3: 1 | C3: مادة 1 | D3: كيلو | E3: 10 | F3: 220 | G3: =F3*$E3 -> 2200 | H3: =F3+3 -> 223 | I3: =H3*$E3 -> 2230 | J3: =F3+4 -> 224 | K3: =J3*$E3 -> 2240 | L3: =J3+3 -> 227 | M3: =L3*$E3 -> 2270 | N3: =J3+4 -> 228 | O3: =N3*$E3 -> 2280 | P3: =N3+3 -> 231 | Q3: =P3*$E3 -> 2310 | R3: =N3+4 -> 232 | S3: =R3*$E3 -> 2320 | T3: =R3+3 -> 235 | U3: =T3*$E3 -> 2350 | V3: =R3+4 -> 236 | W3: =V3*$E3 -> 2360 | X3: =V3+3 -> 239 | Y3: =X3*$E3 -> 2390 | Z3: =V3+4 -> 240 | AA3: =Z3*$E3 -> 2400 | AB3: =Z3+3 -> 243 | AC3: =AB3*$E3 -> 2430 | AD3: =Z3+4 -> 244 | AE3: =AD3*$E3 -> 2440 | AF3: =AD3+3 -> 247 | AG3: =AF3*$E3 -> 2470
A4: القسم 3 | B4: 2 | C4: مادة 2 | D4: كيلو | E4: 11 | F4: 210 | G4: =F4*$E4 -> 2310 | H4: =F4+3 -> 213 | I4: 2343 | J4: =F4+4 -> 214 | K4: =J4*$E4 -> 2354 | L4: =J4+3 -> 217 | M4: =L4*$E4 -> 2387 | N4: =J4+4 -> 218 | O4: =N4*$E4 -> 2398 | P4: =N4+3 -> 221 | Q4: =P4*$E4 -> 2431 | R4: =N4+4 -> 222 | S4: =R4*$E4 -> 2442 | T4: =R4+3 -> 225 | U4: =T4*$E4 -> 2475 | V4: =R4+4 -> 226 | W4: =V4*$E4 -> 2486 | X4: =V4+3 -> 229 | Y4: =X4*$E4 -> 2519 | Z4: =V4+4 -> 230 | AA4: =Z4*$E4 -> 2530 | AB4: =Z4+3 -> 233 | AC4: =AB4*$E4 -> 2563 | AD4: =Z4+4 -> 234 | AE4: =AD4*$E4 -> 2574 | AF4: =AD4+3 -> 237 | AG4: =AF4*$E4 -> 2607
A5: القسم 3 | B5: 3 | C5: مادة 3 | D5: كيلو | E5: 12 | F5: 230 | G5: 2760 | H5: 233 | I5: 2796 | J5: 234 | K5: =J5*$E5 -> 2808 | L5: 237 | M5: =L5*$E5 -> 2844 | N5: 238 | O5: =N5*$E5 -> 2856 | P5: 241 | Q5: 2892 | R5: 242 | S5: =R5*$E5 -> 2904 | T5: 245 | U5: 2940 | V5: 246 | W5: =V5*$E5 -> 2952 | X5: 249 | Y5: 2988 | Z5: 250 | AA5: 3000 | AB5: 253 | AC5: 3036 | AD5: 254 | AE5: =AD5*$E5 -> 3048 | AF5: 257 | AG5: 3084
A6: القسم 3 | B6: 4 | C6: مادة 4 | D6: كيلو | E6: 13 | F6: 240 | G6: 3120 | H6: 243 | I6: 3159 | J6: 244 | K6: =J6*$E6 -> 3172 | L6: 247 | M6: =L6*$E6 -> 3211 | N6: 248 | O6: =N6*$E6 -> 3224 | P6: 251 | Q6: 3263 | R6: 252 | S6: =R6*$E6 -> 3276 | T6: 255 | U6: 3315 | V6: 256 | W6: =V6*$E6 -> 3328 | X6: 259 | Y6: 3367 | Z6: 260 | AA6: 3380 | AB6: 263 | AC6: 3419 | AD6: 264 | AE6: =AD6*$E6 -> 3432 | AF6: 267 | AG6: 3471
A7: القسم 3 | B7: 5 | C7: مادة 5 | D7: كيلو | E7: 14 | F7: 250 | G7: 3500 | H7: 253 | I7: 3542 | J7: 254 | K7: =J7*$E7 -> 3556 | L7: 257 | M7: =L7*$E7 -> 3598 | N7: 258 | O7: =N7*$E7 -> 3612 | P7: 261 | Q7: 3654 | R7: 262 | S7: =R7*$E7 -> 3668 | T7: 265 | U7: 3710 | V7: 266 | W7: =V7*$E7 -> 3724 | X7: 269 | Y7: 3766 | Z7: 270 | AA7: 3780 | AB7: 273 | AC7: 3822 | AD7: 274 | AE7: =AD7*$E7 -> 3836 | AF7: 277 | AG7: 3878

Sheet القسم 4
A1: الفرع | F1: 1 | G1: 1 | H1: 1 | I1: 1 | J1: 2 | K1: 2 | L1: 2 | M1: 2 | N1: 3 | O1: 3 | P1: 3 | Q1: 3 | R1: 4 | S1: 4 | T1: 4 | U1: 4 | V1: 5 | W1: 5 | X1: 5 | Y1: 5 | Z1: 6 | AA1: 6 | AB1: 6 | AC1: 6 | AD1: 7 | AE1: 7 | AF1: 7 | AG1: 7
A2: القسم | B2: الرمز | C2: المادة | D2: الوحدة | E2: السعر | F2: الكمية / 2024 | G2: القيمة / 2024 | H2: الكمية / 2023 | I2: القيمة / 2023 | J2: الكمية / 2024 | K2: القيمة / 2024 | L2: الكمية / 2023 | M2: القيمة / 2023 | N2: الكمية / 2024 | O2: القيمة / 2024 | P2: الكمية / 2023 | Q2: القيمة / 2023 | R2: الكمية / 2024 | S2: القيمة / 2024 | T2: الكمية / 2023 | U2: القيمة / 2023 | V2: الكمية / 2024 | W2: القيمة / 2024 | X2: الكمية / 2023 | Y2: القيمة / 2023 | Z2: الكمية / 2024 | AA2: القيمة / 2024 | AB2: الكمية / 2023 | AC2: القيمة / 2023 | AD2: الكمية / 2024 | AE2: القيمة / 2024 | AF2: الكمية / 2023 | AG2: القيمة / 2023
A3: القسم 4 | B3: 1 | C3: مادة 1 | D3: كيلو | E3: 10 | F3: 400 | G3: =F3*$E3 -> 4000 | H3: =F3+3 -> 403 | I3: =H3*$E3 -> 4030 | J3: =F3+4 -> 404 | K3: =J3*$E3 -> 4040 | L3: =J3+3 -> 407 | M3: =L3*$E3 -> 4070 | N3: =J3+4 -> 408 | O3: =N3*$E3 -> 4080 | P3: =N3+3 -> 411 | Q3: =P3*$E3 -> 4110 | R3: =N3+4 -> 412 | S3: =R3*$E3 -> 4120 | T3: =R3+3 -> 415 | U3: =T3*$E3 -> 4150 | V3: =R3+4 -> 416 | W3: =V3*$E3 -> 4160 | X3: =V3+3 -> 419 | Y3: =X3*$E3 -> 4190 | Z3: =V3+4 -> 420 | AA3: =Z3*$E3 -> 4200 | AB3: =Z3+3 -> 423 | AC3: =AB3*$E3 -> 4230 | AD3: =Z3+4 -> 424 | AE3: =AD3*$E3 -> 4240 | AF3: =AD3+3 -> 427 | AG3: =AF3*$E3 -> 4270
A4: القسم 4 | B4: 2 | C4: مادة 2 | D4: كيلو | E4: 11 | F4: 420 | G4: =F4*$E4 -> 4620 | H4: =F4+3 -> 423 | I4: 4653 | J4: =F4+4 -> 424 | K4: =J4*$E4 -> 4664 | L4: =J4+3 -> 427 | M4: =L4*$E4 -> 4697 | N4: =J4+4 -> 428 | O4: =N4*$E4 -> 4708 | P4: =N4+3 -> 431 | Q4: =P4*$E4 -> 4741 | R4: =N4+4 -> 432 | S4: =R4*$E4 -> 4752 | T4: =R4+3 -> 435 | U4: =T4*$E4 -> 4785 | V4: =R4+4 -> 436 | W4: =V4*$E4 -> 4796 | X4: =V4+3 -> 439 | Y4: =X4*$E4 -> 4829 | Z4: =V4+4 -> 440 | AA4: =Z4*$E4 -> 4840 | AB4: =Z4+3 -> 443 | AC4: =AB4*$E4 -> 4873 | AD4: =Z4+4 -> 444 | AE4: =AD4*$E4 -> 4884 | AF4: =AD4+3 -> 447 | AG4: =AF4*$E4 -> 4917
A5: القسم 4 | B5: 3 | C5: مادة 3 | D5: كيلو | E5: 12 | F5: 430 | G5: 5160 | H5: 433 | I5: 5196 | J5: 434 | K5: =J5*$E5 -> 5208 | L5: 437 | M5: =L5*$E5 -> 5244 | N5: 438 | O5: =N5*$E5 -> 5256 | P5: 441 | Q5: 5292 | R5: 442 | S5: =R5*$E5 -> 5304 | T5: 445 | U5: 5340 | V5: 446 | W5: =V5*$E5 -> 5352 | X5: 449 | Y5: 5388 | Z5: 450 | AA5: 5400 | AB5: 453 | AC5: 5436 | AD5: 454 | AE5: =AD5*$E5 -> 5448 | AF5: 457 | AG5: 5484
A6: القسم 4 | B6: 4 | C6: مادة 4 | D6: كيلو | E6: 13 | F6: 450 | G6: 5850 | H6: 453 | I6: 5889 | J6: 454 | K6: =J6*$E6 -> 5902 | L6: 457 | M6: =L6*$E6 -> 5941 | N6: 458 | O6: =N6*$E6 -> 5954 | P6: 461 | Q6: 5993 | R6: 462 | S6: =R6*$E6 -> 6006 | T6: 465 | U6: 6045 | V6: 466 | W6: =V6*$E6 -> 6058 | X6: 469 | Y6: 6097 | Z6: 470 | AA6: 6110 | AB6: 473 | AC6: 6149 | AD6: 474 | AE6: =AD6*$E6 -> 6162 | AF6: 477 | AG6: 6201
A7: القسم 4 | B7: 5 | C7: مادة 5 | D7: كيلو | E7: 14 | F7: 440 | G7: 6160 | H7: 443 | I7: 6202 | J7: 444 | K7: =J7*$E7 -> 6216 | L7: 447 | M7: =L7*$E7 -> 6258 | N7: 448 | O7: =N7*$E7 -> 6272 | P7: 451 | Q7: 6314 | R7: 452 | S7: =R7*$E7 -> 6328 | T7: 455 | U7: 6370 | V7: 456 | W7: =V7*$E7 -> 6384 | X7: 459 | Y7: 6426 | Z7: 460 | AA7: 6440 | AB7: 463 | AC7: 6482 | AD7: 464 | AE7: =AD7*$E7 -> 6496 | AF7: 467 | AG7: 6538
A8: القسم 4 | B8: 6 | C8: مادة 6 | D8: كيلو | E8: 14 | F8: 440 | G8: =F8*$E8 -> 6160 | H8: =F8+3 -> 443 | I8: =H8*$E8 -> 6202 | J8: =F8+4 -> 444 | K8: =J8*$E8 -> 6216 | L8: =J8+3 -> 447 | M8: =L8*$E8 -> 6258 | N8: =J8+4 -> 448 | O8: =N8*$E8 -> 6272 | P8: =N8+3 -> 451 | Q8: =P8*$E8 -> 6314 | R8: =N8+4 -> 452 | S8: =R8*$E8 -> 6328 | T8: =R8+3 -> 455 | U8: =T8*$E8 -> 6370 | V8: =R8+4 -> 456 | W8: =V8*$E8 -> 6384 | X8: =V8+3 -> 459 | Y8: =X8*$E8 -> 6426 | Z8: =V8+4 -> 460 | AA8: =Z8*$E8 -> 6440 | AB8: =Z8+3 -> 463 | AC8: =AB8*$E8 -> 6482 | AD8: =Z8+4 -> 464 | AE8: =AD8*$E8 -> 6496 | AF8: =AD8+3 -> 467 | AG8: =AF8*$E8 -> 6538

Sheet ملخص
XFB1: عدد الأسطر | XFC1: عدد الفروع | XFD1: =TRIM(RIGHT(TRIM(XFC1),LEN(TRIM(XFC1))-3)) -> الفروع
A2: الفرع | B2: القسم | C2: الرمز | D2: المادة | E2: الوحدة | F2: السعر | G2: الكمية / 2024 | H2: القيمة / 2024 | I2: الكمية / 2023 | J2: القيمة / 2023 | XFB2: 8 | XFC2: 2
A3: فرع 1 | B3: القسم 1 | C3: 1 | D3: مادة 1 | E3: كيلو | F3: 10 | G3: 100 | H3: 1000 | I3: 103 | J3: 1030 | XFB3: 18 | XFC3: 2
A4: فرع 1 | B4: القسم 1 | C4: 2 | D4: مادة 2 | E4: كيلو | F4: 11 | G4: 120 | H4: 1320 | I4: 123 | J4: 1353 | XFB4: 5 | XFC4: 7
A5: فرع 1 | B5: القسم 1 | C5: 3 | D5: مادة 3 | E5: كيلو | F5: 12 | G5: 130 | H5: 1560 | I5: 133 | J5: 1596 | XFB5: 6 | XFC5: 7
A6: فرع 1 | B6: القسم 1 | C6: 4 | D6: مادة 4 | E6: كيلو | F6: 13 | G6: 140 | H6: 1820 | I6: 143 | J6: 1859
A7: فرع 1 | B7: القسم 1 | C7: 5 | D7: مادة 5 | E7: كيلو | F7: 14 | G7: 150 | H7: 2100 | I7: 153 | J7: 2142
A8: فرع 1 | B8: القسم 1 | C8: 6 | D8: مادة 6 | E8: كيلو | F8: 15 | G8: 160 | H8: 2400 | I8: 163 | J8: 2445
A9: فرع 1 | B9: القسم 1 | C9: 7 | D9: مادة 7 | E9: كيلو | F9: 16 | G9: 170 | H9: 2720 | I9: 173 | J9: 2768
A10: فرع 1 | B10: القسم 1 | C10: 8 | D10: مادة 8 | E10: كيلو | F10: 17 | G10: 180 | H10: 3060 | I10: 183 | J10: 3111
A11: فرع 2 | B11: القسم 1 | C11: 1 | D11: مادة 1 | E11: كيلو | F11: 10 | G11: 104 | H11: 1040 | I11: 107 | J11: 1070
A12: فرع 2 | B12: القسم 1 | C12: 2 | D12: مادة 2 | E12: كيلو | F12: 11 | G12: 124 | H12: 1364 | I12: 127 | J12: 1397
A13: فرع 2 | B13: القسم 1 | C13: 3 | D13: مادة 3 | E13: كيلو | F13: 12 | G13: 134 | H13: 1608 | I13: 137 | J13: 1644
A14: فرع 2 | B14: القسم 1 | C14: 4 | D14: مادة 4 | E14: كيلو | F14: 13 | G14: 144 | H14: 1872 | I14: 147 | J14: 1911
A15: فرع 2 | B15: القسم 1 | C15: 5 | D15: مادة 5 | E15: كيلو | F15: 14 | G15: 154 | H15: 2156 | I15: 157 | J15: 2198
A16: فرع 2 | B16: القسم 1 | C16: 6 | D16: مادة 6 | E16: كيلو | F16: 15 | G16: 164 | H16: 2460 | I16: 167 | J16: 2505
A17: فرع 2 | B17: القسم 1 | C17: 7 | D17: مادة 7 | E17: كيلو | F17: 16 | G17: 174 | H17: 2784 | I17: 177 | J17: 2832
A18: فرع 2 | B18: القسم 1 | C18: 8 | D18: مادة 8 | E18: كيلو | F18: 17 | G18: 184 | H18: 3128 | I18: 187 | J18: 3179
A19: فرع 1 | B19: القسم 2 | C19: 1 | D19: مادة 1 | E19: كيلو | F19: 10 | G19: 300 | H19: 3000 | I19: 303 | J19: 3030
A20: فرع 1 | B20: القسم 2 | C20: 2 | D20: مادة 2 | E20: كيلو | F20: 11 | G20: 320 | H20: 3520 | I20: 323 | J20: 3553
A21: فرع 1 | B21: القسم 2 | C21: 3 | D21: مادة 3 | E21: كيلو | F21: 12 | G21: 310 | H21: 3720 | I21: 313 | J21: 3756
A22: فرع 1 | B22: القسم 2 | C22: 4 | D22: مادة 4 | E22: كيلو | F22: 13 | G22: 350 | H22: 4550 | I22: 353 | J22: 4589
A23: فرع 1 | B23: القسم 2 | C23: 5 | D23: مادة 5 | E23: كيلو | F23: 14 | G23: 330 | H23: 4620 | I23: 333 | J23: 4662
A24: فرع 1 | B24: القسم 2 | C24: 6 | D24: مادة 6 | E24: كيلو | F24: 15 | G24: 310 | H24: 4650 | I24: 313 | J24: 4695
A25: فرع 1 | B25: القسم 2 | C25: 7 | D25: مادة 7 | E25: كيلو | F25: 16 | G25: 290 | H25: 4640 | I25: 293 | J25: 4688
A26: فرع 1 | B26: القسم 2 | C26: 8 | D26: مادة 8 | E26: كيلو | F26: 17 | G26: 270 | H26: 4590 | I26: 273 | J26: 4641
A27: فرع 1 | B27: القسم 2 | C27: 9 | D27: مادة 9 | E27: كيلو | F27: 18 | G27: 250 | H27: 4500 | I27: 253 | J27: 4554
A28: فرع 1 | B28: القسم 2 | C28: 10 | D28: مادة 10 | E28: كيلو | F28: 19 | G28: 230 | H28: 4370 | I28: 233 | J28: 4427
A29: فرع 1 | B29: القسم 2 | C29: 11 | D29: مادة 11 | E29: كيلو | F29: 20 | G29: 210 | H29: 4200 | I29: 213 | J29: 4260
A30: فرع 1 | B30: القسم 2 | C30: 12 | D30: مادة 12 | E30: كيلو | F30: 21 | G30: 190 | H30: 3990 | I30: 193 | J30: 4053
A31: فرع 1 | B31: القسم 2 | C31: 13 | D31: مادة 13 | E31: كيلو | F31: 22 | G31: 170 | H31: 3740 | I31: 173 | J31: 3806
A32: فرع 1 | B32: القسم 2 | C32: 14 | D32: مادة 14 | E32: كيلو | F32: 23 | G32: 150 | H32: 3450 | I32: 153 | J32: 3519
A33: فرع 1 | B33: القسم 2 | C33: 15 | D33: مادة 15 | E33: كيلو | F33: 24 | G33: 130 | H33: 3120 | I33: 133 | J33: 3192
A34: فرع 1 | B34: القسم 2 | C34: 16 | D34: مادة 16 | E34: كيلو | F34: 25 | G34: 110 | H34: 2750 | I34: 113 | J34: 2825
A35: فرع 1 | B35: القسم 2 | C35: 17 | D35: مادة 17 | E35: كيلو | F35: 26 | G35: 90 | H35: 2340 | I35: 93 | J35: 2418
A36: فرع 1 | B36: القسم 2 | C36: 18 | D36: مادة 18 | E36: كيلو | F36: 27 | G36: 70 | H36: 1890 | I36: 73 | J36: 1971
A37: فرع 2 | B37: القسم 2 | C37: 1 | D37: مادة 1 | E37: كيلو | F37: 10 | G37: 304 | H37: 3040 | I37: 307 | J37: 3070
A38: فرع 2 | B38: القسم 2 | C38: 2 | D38: مادة 2 | E38: كيلو | F38: 11 | G38: 324 | H38: 3564 | I38: 327 | J38: 3597
A39: فرع 2 | B39: القسم 2 | C39: 3 | D39: مادة 3 | E39: كيلو | F39: 12 | G39: 314 | H39: 3768 | I39: 317 | J39: 3804
A40: فرع 2 | B40: القسم 2 | C40: 4 | D40: مادة 4 | E40: كيلو | F40: 13 | G40: 354 | H40: 4602 | I40: 357 | J40: 4641
A41: فرع 2 | B41: القسم 2 | C41: 5 | D41: مادة 5 | E41: كيلو | F41: 14 | G41: 334 | H41: 4676 | I41: 337 | J41: 4718
A42: فرع 2 | B42: القسم 2 | C42: 6 | D42: مادة 6 | E42: كيلو | F42: 15 | G42: 314 | H42: 4710 | I42: 317 | J42: 4755
A43: فرع 2 | B43: القسم 2 | C43: 7 | D43: مادة 7 | E43: كيلو | F43: 16 | G43: 294 | H43: 4704 | I43: 297 | J43: 4752
A44: فرع 2 | B44: القسم 2 | C44: 8 | D44: مادة 8 | E44: كيلو | F44: 17 | G44: 274 | H44: 4658 | I44: 277 | J44: 4709
A45: فرع 2 | B45: القسم 2 | C45: 9 | D45: مادة 9 | E45: كيلو | F45: 18 | G45: 254 | H45: 4572 | I45: 257 | J45: 4626
A46: فرع 2 | B46: القسم 2 | C46: 10 | D46: مادة 10 | E46: كيلو | F46: 19 | G46: 234 | H46: 4446 | I46: 237 | J46: 4503
A47: فرع 2 | B47: القسم 2 | C47: 11 | D47: مادة 11 | E47: كيلو | F47: 20 | G47: 214 | H47: 4280 | I47: 217 | J47: 4340
A48: فرع 2 | B48: القسم 2 | C48: 12 | D48: مادة 12 | E48: كيلو | F48: 21 | G48: 194 | H48: 4074 | I48: 197 | J48: 4137
A49: فرع 2 | B49: القسم 2 | C49: 13 | D49: مادة 13 | E49: كيلو | F49: 22 | G49: 174 | H49: 3828 | I49: 177 | J49: 3894
A50: فرع 2 | B50: القسم 2 | C50: 14 | D50: مادة 14 | E50: كيلو | F50: 23 | G50: 154 | H50: 3542 | I50: 157 | J50: 3611
A51: فرع 2 | B51: القسم 2 | C51: 15 | D51: مادة 15 | E51: كيلو | F51: 24 | G51: 134 | H51: 3216 | I51: 137 | J51: 3288
A52: فرع 2 | B52: القسم 2 | C52: 16 | D52: مادة 16 | E52: كيلو | F52: 25 | G52: 114 | H52: 2850 | I52: 117 | J52: 2925
A53: فرع 2 | B53: القسم 2 | C53: 17 | D53: مادة 17 | E53: كيلو | F53: 26 | G53: 94 | H53: 2444 | I53: 97 | J53: 2522
A54: فرع 2 | B54: القسم 2 | C54: 18 | D54: مادة 18 | E54: كيلو | F54: 27 | G54: 74 | H54: 1998 | I54: 77 | J54: 2079
A55: فرع 1 | B55: القسم 3 | C55: 1 | D55: مادة 1 | E55: كيلو | F55: 10 | G55: 220 | H55: 2200 | I55: 223 | J55: 2230
A56: فرع 1 | B56: القسم 3 | C56: 2 | D56: مادة 2 | E56: كيلو | F56: 11 | G56: 210 | H56: 2310 | I56: 213 | J56: 2343
A57: فرع 1 | B57: القسم 3 | C57: 3 | D57: مادة 3 | E57: كيلو | F57: 12 | G57: 230 | H57: 2760 | I57: 233 | J57: 2796
A58: فرع 1 | B58: القسم 3 | C58: 4 | D58: مادة 4 | E58: كيلو | F58: 13 | G58: 240 | H58: 3120 | I58: 243 | J58: 3159
A59: فرع 1 | B59: القسم 3 | C59: 5 | D59: مادة 5 | E59: كيلو | F59: 14 | G59: 250 | H59: 3500 | I59: 253 | J59: 3542
A60: فرع 2 | B60: القسم 3 | C60: 1 | D60: مادة 1 | E60: كيلو | F60: 10 | G60: 224 | H60: 2240 | I60: 227 | J60: 2270
A61: فرع 2 | B61: القسم 3 | C61: 2 | D61: مادة 2 | E61: كيلو | F61: 11 | G61: 214 | H61: 2354 | I61: 217 | J61: 2387
A62: فرع 2 | B62: القسم 3 | C62: 3 | D62: مادة 3 | E62: كيلو | F62: 12 | G62: 234 | H62: 2808 | I62: 237 | J62: 2844
A63: فرع 2 | B63: القسم 3 | C63: 4 | D63: مادة 4 | E63: كيلو | F63: 13 | G63: 244 | H63: 3172 | I63: 247 | J63: 3211
A64: فرع 2 | B64: القسم 3 | C64: 5 | D64: مادة 5 | E64: كيلو | F64: 14 | G64: 254 | H64: 3556 | I64: 257 | J64: 3598
A65: فرع 3 | B65: القسم 3 | C65: 1 | D65: مادة 1 | E65: كيلو | F65: 10 | G65: 228 | H65: 2280 | I65: 231 | J65: 2310
A66: فرع 3 | B66: القسم 3 | C66: 2 | D66: مادة 2 | E66: كيلو | F66: 11 | G66: 218 | H66: 2398 | I66: 221 | J66: 2431
A67: فرع 3 | B67: القسم 3 | C67: 3 | D67: مادة 3 | E67: كيلو | F67: 12 | G67: 238 | H67: 2856 | I67: 241 | J67: 2892
A68: فرع 3 | B68: القسم 3 | C68: 4 | D68: مادة 4 | E68: كيلو | F68: 13 | G68: 248 | H68: 3224 | I68: 251 | J68: 3263
A69: فرع 3 | B69: القسم 3 | C69: 5 | D69: مادة 5 | E69: كيلو | F69: 14 | G69: 258 | H69: 3612 | I69: 261 | J69: 3654
A70: فرع 4 | B70: القسم 3 | C70: 1 | D70: مادة 1 | E70: كيلو | F70: 10 | G70: 232 | H70: 2320 | I70: 235 | J70: 2350
A71: فرع 4 | B71: القسم 3 | C71: 2 | D71: مادة 2 | E71: كيلو | F71: 11 | G71: 222 | H71: 2442 | I71: 225 | J71: 2475
A72: فرع 4 | B72: القسم 3 | C72: 3 | D72: مادة 3 | E72: كيلو | F72: 12 | G72: 242 | H72: 2904 | I72: 245 | J72: 2940
A73: فرع 4 | B73: القسم 3 | C73: 4 | D73: مادة 4 | E73: كيلو | F73: 13 | G73: 252 | H73: 3276 | I73: 255 | J73: 3315
A74: فرع 4 | B74: القسم 3 | C74: 5 | D74: مادة 5 | E74: كيلو | F74: 14 | G74: 262 | H74: 3668 | I74: 265 | J74: 3710
A75: فرع 5 | B75: القسم 3 | C75: 1 | D75: مادة 1 | E75: كيلو | F75: 10 | G75: 236 | H75: 2360 | I75: 239 | J75: 2390
A76: فرع 5 | B76: القسم 3 | C76: 2 | D76: مادة 2 | E76: كيلو | F76: 11 | G76: 226 | H76: 2486 | I76: 229 | J76: 2519
A77: فرع 5 | B77: القسم 3 | C77: 3 | D77: مادة 3 | E77: كيلو | F77: 12 | G77: 246 | H77: 2952 | I77: 249 | J77: 2988
A78: فرع 5 | B78: القسم 3 | C78: 4 | D78: مادة 4 | E78: كيلو | F78: 13 | G78: 256 | H78: 3328 | I78: 259 | J78: 3367
A79: فرع 5 | B79: القسم 3 | C79: 5 | D79: مادة 5 | E79: كيلو | F79: 14 | G79: 266 | H79: 3724 | I79: 269 | J79: 3766
A80: فرع 6 | B80: القسم 3 | C80: 1 | D80: مادة 1 | E80: كيلو | F80: 10 | G80: 240 | H80: 2400 | I80: 243 | J80: 2430
A81: فرع 6 | B81: القسم 3 | C81: 2 | D81: مادة 2 | E81: كيلو | F81: 11 | G81: 230 | H81: 2530 | I81: 233 | J81: 2563
A82: فرع 6 | B82: القسم 3 | C82: 3 | D82: مادة 3 | E82: كيلو | F82: 12 | G82: 250 | H82: 3000 | I82: 253 | J82: 3036
A83: فرع 6 | B83: القسم 3 | C83: 4 | D83: مادة 4 | E83: كيلو | F83: 13 | G83: 260 | H83: 3380 | I83: 263 | J83: 3419
A84: فرع 6 | B84: القسم 3 | C84: 5 | D84: مادة 5 | E84: كيلو | F84: 14 | G84: 270 | H84: 3780 | I84: 273 | J84: 3822
A85: فرع 7 | B85: القسم 3 | C85: 1 | D85: مادة 1 | E85: كيلو | F85: 10 | G85: 244 | H85: 2440 | I85: 247 | J85: 2470
A86: فرع 7 | B86: القسم 3 | C86: 2 | D86: مادة 2 | E86: كيلو | F86: 11 | G86: 234 | H86: 2574 | I86: 237 | J86: 2607
A87: فرع 7 | B87: القسم 3 | C87: 3 | D87: مادة 3 | E87: كيلو | F87: 12 | G87: 254 | H87: 3048 | I87: 257 | J87: 3084
A88: فرع 7 | B88: القسم 3 | C88: 4 | D88: مادة 4 | E88: كيلو | F88: 13 | G88: 264 | H88: 3432 | I88: 267 | J88: 3471
A89: فرع 7 | B89: القسم 3 | C89: 5 | D89: مادة 5 | E89: كيلو | F89: 14 | G89: 274 | H89: 3836 | I89: 277 | J89: 3878
A90: فرع 1 | B90: القسم 4 | C90: 1 | D90: مادة 1 | E90: كيلو | F90: 10 | G90: 400 | H90: 4000 | I90: 403 | J90: 4030
A91: فرع 1 | B91: القسم 4 | C91: 2 | D91: مادة 2 | E91: كيلو | F91: 11 | G91: 420 | H91: 4620 | I91: 423 | J91: 4653
A92: فرع 1 | B92: القسم 4 | C92: 3 | D92: مادة 3 | E92: كيلو | F92: 12 | G92: 430 | H92: 5160 | I92: 433 | J92: 5196
A93: فرع 1 | B93: القسم 4 | C93: 4 | D93: مادة 4 | E93: كيلو | F93: 13 | G93: 450 | H93: 5850 | I93: 453 | J93: 5889
A94: فرع 1 | B94: القسم 4 | C94: 5 | D94: مادة 5 | E94: كيلو | F94: 14 | G94: 440 | H94: 6160 | I94: 443 | J94: 6202
A95: فرع 1 | B95: القسم 4 | C95: 6 | D95: مادة 6 | E95: كيلو | F95: 14 | G95: 440 | H95: 6160 | I95: 443 | J95: 6202
A96: فرع 2 | B96: القسم 4 | C96: 1 | D96: مادة 1 | E96: كيلو | F96: 10 | G96: 404 | H96: 4040 | I96: 407 | J96: 4070
A97: فرع 2 | B97: القسم 4 | C97: 2 | D97: مادة 2 | E97: كيلو | F97: 11 | G97: 424 | H97: 4664 | I97: 427 | J97: 4697
A98: فرع 2 | B98: القسم 4 | C98: 3 | D98: مادة 3 | E98: كيلو | F98: 12 | G98: 434 | H98: 5208 | I98: 437 | J98: 5244
A99: فرع 2 | B99: القسم 4 | C99: 4 | D99: مادة 4 | E99: كيلو | F99: 13 | G99: 454 | H99: 5902 | I99: 457 | J99: 5941
A100: فرع 2 | B100: القسم 4 | C100: 5 | D100: مادة 5 | E100: كيلو | F100: 14 | G100: 444 | H100: 6216 | I100: 447 | J100: 6258
A101: فرع 2 | B101: القسم 4 | C101: 6 | D101: مادة 6 | E101: كيلو | F101: 14 | G101: 444 | H101: 6216 | I101: 447 | J101: 6258
A102: فرع 3 | B102: القسم 4 | C102: 1 | D102: مادة 1 | E102: كيلو | F102: 10 | G102: 408 | H102: 4080 | I102: 411 | J102: 4110
A103: فرع 3 | B103: القسم 4 | C103: 2 | D103: مادة 2 | E103: كيلو | F103: 11 | G103: 428 | H103: 4708 | I103: 431 | J103: 4741
A104: فرع 3 | B104: القسم 4 | C104: 3 | D104: مادة 3 | E104: كيلو | F104: 12 | G104: 438 | H104: 5256 | I104: 441 | J104: 5292
A105: فرع 3 | B105: القسم 4 | C105: 4 | D105: مادة 4 | E105: كيلو | F105: 13 | G105: 458 | H105: 5954 | I105: 461 | J105: 5993
A106: فرع 3 | B106: القسم 4 | C106: 5 | D106: مادة 5 | E106: كيلو | F106: 14 | G106: 448 | H106: 6272 | I106: 451 | J106: 6314
A107: فرع 3 | B107: القسم 4 | C107: 6 | D107: مادة 6 | E107: كيلو | F107: 14 | G107: 448 | H107: 6272 | I107: 451 | J107: 6314
A108: فرع 4 | B108: القسم 4 | C108: 1 | D108: مادة 1 | E108: كيلو | F108: 10 | G108: 412 | H108: 4120 | I108: 415 | J108: 4150
A109: فرع 4 | B109: القسم 4 | C109: 2 | D109: مادة 2 | E109: كيلو | F109: 11 | G109: 432 | H109: 4752 | I109: 435 | J109: 4785
A110: فرع 4 | B110: القسم 4 | C110: 3 | D110: مادة 3 | E110: كيلو | F110: 12 | G110: 442 | H110: 5304 | I110: 445 | J110: 5340
A111: فرع 4 | B111: القسم 4 | C111: 4 | D111: مادة 4 | E111: كيلو | F111: 13 | G111: 462 | H111: 6006 | I111: 465 | J111: 6045
A112: فرع 4 | B112: القسم 4 | C112: 5 | D112: مادة 5 | E112: كيلو | F112: 14 | G112: 452 | H112: 6328 | I112: 455 | J112: 6370
A113: فرع 4 | B113: القسم 4 | C113: 6 | D113: مادة 6 | E113: كيلو | F113: 14 | G113: 452 | H113: 6328 | I113: 455 | J113: 6370
A114: فرع 5 | B114: القسم 4 | C114: 1 | D114: مادة 1 | E114: كيلو | F114: 10 | G114: 416 | H114: 4160 | I114: 419 | J114: 4190
A115: فرع 5 | B115: القسم 4 | C115: 2 | D115: مادة 2 | E115: كيلو | F115: 11 | G115: 436 | H115: 4796 | I115: 439 | J115: 4829
A116: فرع 5 | B116: القسم 4 | C116: 3 | D116: مادة 3 | E116: كيلو | F116: 12 | G116: 446 | H116: 5352 | I116: 449 | J116: 5388
A117: فرع 5 | B117: القسم 4 | C117: 4 | D117: مادة 4 | E117: كيلو | F117: 13 | G117: 466 | H117: 6058 | I117: 469 | J117: 6097
A118: فرع 5 | B118: القسم 4 | C118: 5 | D118: مادة 5 | E118: كيلو | F118: 14 | G118: 456 | H118: 6384 | I118: 459 | J118: 6426
A119: فرع 5 | B119: القسم 4 | C119: 6 | D119: مادة 6 | E119: كيلو | F119: 14 | G119: 456 | H119: 6384 | I119: 459 | J119: 6426
A120: فرع 6 | B120: القسم 4 | C120: 1 | D120: مادة 1 | E120: كيلو | F120: 10 | G120: 420 | H120: 4200 | I120: 423 | J120: 4230
A121: فرع 6 | B121: القسم 4 | C121: 2 | D121: مادة 2 | E121: كيلو | F121: 11 | G121: 440 | H121: 4840 | I121: 443 | J121: 4873
A122: فرع 6 | B122: القسم 4 | C122: 3 | D122: مادة 3 | E122: كيلو | F122: 12 | G122: 450 | H122: 5400 | I122: 453 | J122: 5436
A123: فرع 6 | B123: القسم 4 | C123: 4 | D123: مادة 4 | E123: كيلو | F123: 13 | G123: 470 | H123: 6110 | I123: 473 | J123: 6149
A124: فرع 6 | B124: القسم 4 | C124: 5 | D124: مادة 5 | E124: كيلو | F124: 14 | G124: 460 | H124: 6440 | I124: 463 | J124: 6482
A125: فرع 6 | B125: القسم 4 | C125: 6 | D125: مادة 6 | E125: كيلو | F125: 14 | G125: 460 | H125: 6440 | I125: 463 | J125: 6482
A126: فرع 7 | B126: القسم 4 | C126: 1 | D126: مادة 1 | E126: كيلو | F126: 10 | G126: 424 | H126: 4240 | I126: 427 | J126: 4270
A127: فرع 7 | B127: القسم 4 | C127: 2 | D127: مادة 2 | E127: كيلو | F127: 11 | G127: 444 | H127: 4884 | I127: 447 | J127: 4917
A128: فرع 7 | B128: القسم 4 | C128: 3 | D128: مادة 3 | E128: كيلو | F128: 12 | G128: 454 | H128: 5448 | I128: 457 | J128: 5484
A129: فرع 7 | B129: القسم 4 | C129: 4 | D129: مادة 4 | E129: كيلو | F129: 13 | G129: 474 | H129: 6162 | I129: 477 | J129: 6201
A130: فرع 7 | B130: القسم 4 | C130: 5 | D130: مادة 5 | E130: كيلو | F130: 14 | G130: 464 | H130: 6496 | I130: 467 | J130: 6538
A131: فرع 7 | B131: القسم 4 | C131: 6 | D131: مادة 6 | E131: كيلو | F131: 14 | G131: 464 | H131: 6496 | I131: 467 | J131: 6538
